[Event "Titled Tuesday Blitz June 20 Early 2023"]
[White "Srdanovic, Jovana"]
[Black "Wang, Alexander J"]
[WhiteFideId "954810"]
[BlackFideId "30955270"]
[WhiteElo "2155"]
[BlackElo "2291"]
[Result "0-1"]
[Round "4"]
[TimeControl "180+2"]
[Date "2023.06.20"]
[WhiteClock "0:00:00"]
[BlackClock "0:00:26"]
[Board "102"]

1. d4 {[%clk 0:03:00]}  d5 {[%clk 0:02:58]} 2. c4 {[%clk 0:02:56]}  e6 {[%clk 0:02:57]} 3. Nc3 {[%clk 0:02:55]}  c5 {[%clk 0:02:56]} 4. cxd5 {[%clk 0:02:54]}  exd5 {[%clk 0:02:57]} 5. Nf3 {[%clk 0:02:54]}  Nc6 {[%clk 0:02:55]} 6. g3 {[%clk 0:02:50]}  Nf6 {[%clk 0:02:55]} 7. Bg2 {[%clk 0:02:46]}  Be7 {[%clk 0:02:51]} 8. Bg5 {[%clk 0:02:47]}  O-O {[%clk 0:02:50]} 9. O-O {[%clk 0:02:41]}  Be6 {[%clk 0:02:38]} 10. e3 {[%clk 0:02:33]}  c4 {[%clk 0:02:31]} 11. Ne5 {[%clk 0:02:18]}  h6 {[%clk 0:01:56]} 12. Bxf6 {[%clk 0:02:12]}  Bxf6 {[%clk 0:01:55]} 13. f4 {[%clk 0:02:06]}  g6 {[%clk 0:01:51]} 14. f5 {[%clk 0:01:46]}  gxf5 {[%clk 0:01:44]} 15. Nxc6 {[%clk 0:01:32]}  bxc6 {[%clk 0:01:43]} 16. Qh5 {[%clk 0:01:27]}  Kh7 {[%clk 0:01:41]} 17. Bh3 {[%clk 0:01:26]}  Bg5 {[%clk 0:01:28]} 18. Rf3 {[%clk 0:00:56]}  Qf6 {[%clk 0:00:58]} 19. Raf1 {[%clk 0:00:55]}  Qg6 {[%clk 0:00:54]} 20. Qxg6+ {[%clk 0:00:37]}  fxg6 {[%clk 0:00:55]} 21. Ne2 {[%clk 0:00:34]}  Rab8 {[%clk 0:00:53]} 22. Rb1 {[%clk 0:00:22]}  Be7 {[%clk 0:00:52]} 23. Nf4 {[%clk 0:00:20]}  Bd7 {[%clk 0:00:52]} 24. Rf2 {[%clk 0:00:12]}  Rb7 {[%clk 0:00:46]} 25. Ne2 {[%clk 0:00:12]}  Rfb8 {[%clk 0:00:44]} 26. Nc3 {[%clk 0:00:12]}  Bg5 {[%clk 0:00:42]} 27. Re2 {[%clk 0:00:09]}  Re8 {[%clk 0:00:39]} 28. Nd1 {[%clk 0:00:09]}  Bc8 {[%clk 0:00:36]} 29. Bg2 {[%clk 0:00:09]}  Rbe7 {[%clk 0:00:36]} 30. h4 {[%clk 0:00:09]}  Bxe3+ {[%clk 0:00:35]} 31. Kh2 {[%clk 0:00:10]}  Bxd4 {[%clk 0:00:35]} 32. Rc2 {[%clk 0:00:08]}  Re2 {[%clk 0:00:32]} 33. Rbc1 {[%clk 0:00:07]}  f4 {[%clk 0:00:30]} 34. Kh1 {[%clk 0:00:02]}  Bf5 {[%clk 0:00:28]} 35. Rxe2 {[%clk 0:00:01]}  Rxe2 {[%clk 0:00:29]} 36. Bf3 {[%clk 0:00:00]}  Rd2 {[%clk 0:00:26]} 0-1


[Site "https://www.chess.com"]

[Event "Titled Tuesday Blitz June 20 Early 2023"]
[White "Eljanov, Pavel"]
[Black "Berezin, Viktor"]
[WhiteFideId "14102951"]
[BlackFideId "14107872"]
[WhiteElo "2598"]
[BlackElo "2310"]
[Result "1-0"]
[Round "4"]
[TimeControl "180+2"]
[Date "2023.06.20"]
[WhiteClock "0:01:32"]
[BlackClock "0:00:04"]
[Board "107"]

1. d4 {[%clk 0:03:00]}  Nf6 {[%clk 0:02:59]} 2. c4 {[%clk 0:03:01]}  g6 {[%clk 0:02:59]} 3. Nc3 {[%clk 0:03:00]}  Bg7 {[%clk 0:02:59]} 4. e4 {[%clk 0:03:00]}  O-O {[%clk 0:03:00]} 5. h3 {[%clk 0:02:58]}  d6 {[%clk 0:03:00]} 6. Be3 {[%clk 0:02:59]}  c6 {[%clk 0:02:57]} 7. Nf3 {[%clk 0:02:58]}  Nbd7 {[%clk 0:02:55]} 8. Be2 {[%clk 0:02:57]}  e5 {[%clk 0:02:56]} 9. d5 {[%clk 0:02:57]}  c5 {[%clk 0:02:54]} 10. Nd2 {[%clk 0:02:56]}  Ne8 {[%clk 0:02:52]} 11. g4 {[%clk 0:02:53]}  Bf6 {[%clk 0:02:42]} 12. Nf3 {[%clk 0:02:53]}  Bg7 {[%clk 0:02:42]} 13. Rg1 {[%clk 0:02:50]}  a6 {[%clk 0:02:39]} 14. a4 {[%clk 0:02:49]}  b6 {[%clk 0:02:26]} 15. h4 {[%clk 0:02:48]}  Rb8 {[%clk 0:02:17]} 16. h5 {[%clk 0:02:45]}  b5 {[%clk 0:01:41]} 17. axb5 {[%clk 0:02:39]}  axb5 {[%clk 0:01:42]} 18. Nxb5 {[%clk 0:02:40]}  Nb6 {[%clk 0:01:40]} 19. b3 {[%clk 0:02:30]}  Bd7 {[%clk 0:01:34]} 20. Nc3 {[%clk 0:02:26]}  Ra8 {[%clk 0:01:24]} 21. Kd2 {[%clk 0:02:22]}  Nc7 {[%clk 0:01:22]} 22. Ne1 {[%clk 0:01:59]}  Na6 {[%clk 0:01:12]} 23. Nc2 {[%clk 0:01:57]}  Qc7 {[%clk 0:00:46]} 24. Rh1 {[%clk 0:01:48]}  Rfb8 {[%clk 0:00:41]} 25. hxg6 {[%clk 0:01:46]}  hxg6 {[%clk 0:00:33]} 26. Qg1 {[%clk 0:01:47]}  Kf8 {[%clk 0:00:12]} 27. Qh2 {[%clk 0:01:37]}  Nc8 {[%clk 0:00:12]} 28. Bh6 {[%clk 0:01:33]}  Bxh6+ {[%clk 0:00:08]} 29. Qxh6+ {[%clk 0:01:33]}  Ke7 {[%clk 0:00:06]} 30. Qg5+ {[%clk 0:01:33]}  f6 {[%clk 0:00:04]} 31. Rh7+ {[%clk 0:01:32]} 1-0


[Site "https://www.chess.com"]

[Event "Titled Tuesday Blitz June 20 Early 2023"]
[White "Ismayil, Malak"]
[Black "Drozdowski, Kacper"]
[WhiteFideId "13412604"]
[BlackFideId "1136720"]
[WhiteElo "1868"]
[BlackElo "2497"]
[Result "0-1"]
[Round "4"]
[TimeControl "180+2"]
[Date "2023.06.20"]
[WhiteClock "0:00:00"]
[BlackClock "0:00:20"]
[Board "108"]

1. e4 {[%clk 0:03:00]}  c5 {[%clk 0:02:59]} 2. Nf3 {[%clk 0:03:00]}  e6 {[%clk 0:03:00]} 3. c3 {[%clk 0:02:55]}  d5 {[%clk 0:02:59]} 4. exd5 {[%clk 0:02:47]}  Qxd5 {[%clk 0:03:00]} 5. Be2 {[%clk 0:02:37]}  Nf6 {[%clk 0:03:00]} 6. O-O {[%clk 0:02:37]}  Nc6 {[%clk 0:03:00]} 7. d4 {[%clk 0:02:38]}  Be7 {[%clk 0:02:58]} 8. Bf4 {[%clk 0:02:37]}  O-O {[%clk 0:02:56]} 9. c4 {[%clk 0:02:11]}  Qf5 {[%clk 0:02:40]} 10. Be3 {[%clk 0:02:10]}  cxd4 {[%clk 0:02:37]} 11. Nxd4 {[%clk 0:02:08]}  Nxd4 {[%clk 0:02:37]} 12. Qxd4 {[%clk 0:02:02]}  Bd7 {[%clk 0:02:34]} 13. Bf3 {[%clk 0:01:56]}  e5 {[%clk 0:02:24]} 14. Qd2 {[%clk 0:01:43]}  e4 {[%clk 0:02:23]} 15. Be2 {[%clk 0:01:43]}  Be6 {[%clk 0:02:18]} 16. Nc3 {[%clk 0:01:42]}  Rfd8 {[%clk 0:02:18]} 17. Qc2 {[%clk 0:01:36]}  Rac8 {[%clk 0:02:15]} 18. b3 {[%clk 0:01:36]}  a6 {[%clk 0:02:13]} 19. a4 {[%clk 0:01:32]}  h5 {[%clk 0:02:10]} 20. Rfd1 {[%clk 0:01:30]}  Qe5 {[%clk 0:02:01]} 21. h3 {[%clk 0:01:24]}  Bd6 {[%clk 0:01:54]} 22. Rxd6 {[%clk 0:01:21]}  Rxd6 {[%clk 0:01:49]} 23. Qc1 {[%clk 0:01:20]}  Rd7 {[%clk 0:01:43]} 24. Bf1 {[%clk 0:01:16]}  Ne8 {[%clk 0:01:17]} 25. g3 {[%clk 0:01:11]}  Nd6 {[%clk 0:01:01]} 26. Bg2 {[%clk 0:01:09]}  Nf5 {[%clk 0:00:58]} 27. Bf4 {[%clk 0:01:05]}  Qd4 {[%clk 0:00:57]} 28. Nxe4 {[%clk 0:01:03]}  b5 {[%clk 0:00:56]} 29. axb5 {[%clk 0:01:00]}  axb5 {[%clk 0:00:56]} 30. c5 {[%clk 0:00:39]}  Bxb3 {[%clk 0:00:55]} 31. Qa3 {[%clk 0:00:28]}  Bd5 {[%clk 0:00:51]} 32. Re1 {[%clk 0:00:27]}  b4 {[%clk 0:00:47]} 33. Qa4 {[%clk 0:00:22]}  Bc6 {[%clk 0:00:46]} 34. Qa6 {[%clk 0:00:20]}  Rdd8 {[%clk 0:00:40]} 35. Bg5 {[%clk 0:00:19]}  Re8 {[%clk 0:00:37]} 36. Bf3 {[%clk 0:00:03]}  b3 {[%clk 0:00:35]} 37. Rd1 {[%clk 0:00:03]}  Qe5 {[%clk 0:00:29]} 38. Nf6+ {[%clk 0:00:01]}  gxf6 {[%clk 0:00:28]} 39. Bxc6 {[%clk 0:00:02]}  fxg5 {[%clk 0:00:24]} 40. Bxe8 {[%clk 0:00:02]}  Rxe8 {[%clk 0:00:25]} 41. Qb5 {[%clk 0:00:02]}  b2 {[%clk 0:00:21]} 42. Kg2 {[%clk 0:00:00]}  Rc8 {[%clk 0:00:20]} 0-1


[Site "https://www.chess.com"]

[Event "Titled Tuesday Blitz June 20 Early 2023"]
[White "Sattarov, Bobir"]
[Black "Yelisieiev, Yevhenii"]
[WhiteFideId "14203081"]
[BlackFideId "14139642"]
[WhiteElo "2351"]
[BlackElo "2403"]
[Result "1-0"]
[Round "4"]
[TimeControl "180+2"]
[Date "2023.06.20"]
[WhiteClock "0:00:57"]
[BlackClock "0:00:01"]
[Board "112"]

1. e4 {[%clk 0:03:00]}  d6 {[%clk 0:02:59]} 2. d4 {[%clk 0:03:00]}  Nf6 {[%clk 0:02:59]} 3. Nc3 {[%clk 0:03:01]}  e5 {[%clk 0:02:59]} 4. Nge2 {[%clk 0:03:00]}  c6 {[%clk 0:02:54]} 5. g3 {[%clk 0:03:00]}  b5 {[%clk 0:02:53]} 6. Bg2 {[%clk 0:02:59]}  Bb7 {[%clk 0:02:54]} 7. O-O {[%clk 0:02:57]}  Be7 {[%clk 0:02:54]} 8. h3 {[%clk 0:02:56]}  O-O {[%clk 0:02:52]} 9. g4 {[%clk 0:02:55]}  b4 {[%clk 0:02:52]} 10. Nb1 {[%clk 0:02:51]}  exd4 {[%clk 0:02:49]} 11. Nxd4 {[%clk 0:02:37]}  g6 {[%clk 0:02:46]} 12. Nd2 {[%clk 0:02:30]}  Re8 {[%clk 0:02:29]} 13. Re1 {[%clk 0:02:14]}  c5 {[%clk 0:02:19]} 14. Ne2 {[%clk 0:02:14]}  Bf8 {[%clk 0:02:10]} 15. Ng3 {[%clk 0:02:09]}  Nbd7 {[%clk 0:02:00]} 16. g5 {[%clk 0:02:09]}  Nh5 {[%clk 0:01:49]} 17. Nxh5 {[%clk 0:02:08]}  gxh5 {[%clk 0:01:49]} 18. Qxh5 {[%clk 0:02:09]}  d5 {[%clk 0:01:36]} 19. Nf1 {[%clk 0:02:04]}  dxe4 {[%clk 0:01:33]} 20. Bf4 {[%clk 0:02:03]}  Qe7 {[%clk 0:01:20]} 21. Ng3 {[%clk 0:02:00]}  Bg7 {[%clk 0:01:06]} 22. Nxe4 {[%clk 0:01:56]}  Kh8 {[%clk 0:00:52]} 23. Rad1 {[%clk 0:01:53]}  Rad8 {[%clk 0:00:38]} 24. Re3 {[%clk 0:01:29]}  Ne5 {[%clk 0:00:37]} 25. Rde1 {[%clk 0:01:28]}  Qf8 {[%clk 0:00:25]} 26. Nf6 {[%clk 0:01:21]}  Bxf6 {[%clk 0:00:24]} 27. Bxb7 {[%clk 0:01:22]}  Ng6 {[%clk 0:00:15]} 28. Bg3 {[%clk 0:01:21]}  Bxb2 {[%clk 0:00:09]} 29. Be4 {[%clk 0:01:17]}  Bd4 {[%clk 0:00:09]} 30. R3e2 {[%clk 0:01:17]}  Qg7 {[%clk 0:00:08]} 31. Bd3 {[%clk 0:01:17]}  Rxe2 {[%clk 0:00:08]} 32. Rxe2 {[%clk 0:01:17]}  Qf8 {[%clk 0:00:07]} 33. Qf3 {[%clk 0:01:16]}  Re8 {[%clk 0:00:07]} 34. Bc4 {[%clk 0:01:14]}  Rxe2 {[%clk 0:00:07]} 35. Qxe2 {[%clk 0:01:15]}  Qe7 {[%clk 0:00:08]} 36. Qg4 {[%clk 0:01:13]}  Kg7 {[%clk 0:00:08]} 37. h4 {[%clk 0:01:13]}  Ne5 {[%clk 0:00:07]} 38. Qe2 {[%clk 0:01:13]}  Ng6 {[%clk 0:00:06]} 39. Qf3 {[%clk 0:01:06]}  Qe1+ {[%clk 0:00:06]} 40. Kg2 {[%clk 0:01:06]}  Qe7 {[%clk 0:00:05]} 41. Bd5 {[%clk 0:01:01]}  Ne5 {[%clk 0:00:05]} 42. Qf5 {[%clk 0:01:01]}  Ng6 {[%clk 0:00:03]} 43. h5 {[%clk 0:01:01]}  Nf8 {[%clk 0:00:03]} 44. Be4 {[%clk 0:00:58]}  Qe6 {[%clk 0:00:02]} 45. Qf3 {[%clk 0:00:58]}  Be5 {[%clk 0:00:02]} 46. Bd5 {[%clk 0:00:58]}  Qd6 {[%clk 0:00:02]} 47. Qxf7+ {[%clk 0:00:56]}  Kh8 {[%clk 0:00:01]} 48. Qg8# {[%clk 0:00:57]} 1-0


[Site "https://www.chess.com"]

[Event "Titled Tuesday Blitz June 20 Early 2023"]
[White "Bruedigam, Martin"]
[Black "Vakhlamov, Igor L."]
[WhiteFideId "24608033"]
[BlackFideId "24126748"]
[WhiteElo "2331"]
[BlackElo "2407"]
[Result "0-1"]
[Round "4"]
[TimeControl "180+2"]
[Date "2023.06.20"]
[WhiteClock "0:00:01"]
[BlackClock "0:00:43"]
[Board "113"]

1. d4 {[%clk 0:03:00]}  d5 {[%clk 0:02:57]} 2. c4 {[%clk 0:03:01]}  e6 {[%clk 0:02:58]} 3. Nc3 {[%clk 0:03:02]}  c5 {[%clk 0:02:58]} 4. e3 {[%clk 0:03:00]}  Nf6 {[%clk 0:02:58]} 5. Nf3 {[%clk 0:03:00]}  Nc6 {[%clk 0:02:59]} 6. a3 {[%clk 0:03:00]}  Ne4 {[%clk 0:02:58]} 7. cxd5 {[%clk 0:02:35]}  exd5 {[%clk 0:02:57]} 8. Bd3 {[%clk 0:02:34]}  Nxc3 {[%clk 0:02:56]} 9. bxc3 {[%clk 0:02:35]}  Bd6 {[%clk 0:02:56]} 10. O-O {[%clk 0:02:27]}  O-O {[%clk 0:02:55]} 11. dxc5 {[%clk 0:02:23]}  Bxc5 {[%clk 0:02:56]} 12. c4 {[%clk 0:02:18]}  dxc4 {[%clk 0:02:23]} 13. Bxc4 {[%clk 0:02:19]}  Qf6 {[%clk 0:02:16]} 14. Rb1 {[%clk 0:02:15]}  Rd8 {[%clk 0:02:11]} 15. Qe2 {[%clk 0:02:13]}  Bg4 {[%clk 0:02:06]} 16. Bb2 {[%clk 0:02:13]}  Qg6 {[%clk 0:01:54]} 17. Rbc1 {[%clk 0:02:01]}  Bd6 {[%clk 0:01:47]} 18. Kh1 {[%clk 0:01:39]}  Qh5 {[%clk 0:01:38]} 19. h3 {[%clk 0:01:37]}  Re8 {[%clk 0:01:23]} 20. Rfd1 {[%clk 0:01:26]}  Rad8 {[%clk 0:01:17]} 21. Rd5 {[%clk 0:01:13]}  Be5 {[%clk 0:01:02]} 22. Rxd8 {[%clk 0:00:58]}  Rxd8 {[%clk 0:01:02]} 23. Bxf7+ {[%clk 0:00:17]}  Kxf7 {[%clk 0:00:53]} 24. Qc4+ {[%clk 0:00:17]}  Be6 {[%clk 0:00:50]} 25. Nxe5+ {[%clk 0:00:17]}  Qxe5 {[%clk 0:00:42]} 26. Bxe5 {[%clk 0:00:01]}  Bxc4 {[%clk 0:00:43]} 0-1


[Site "https://www.chess.com"]

[Event "Titled Tuesday Blitz June 20 Early 2023"]
[White "Starozhilov, Leonid"]
[Black "Vyatkin, Dmitry"]
[WhiteFideId "14106752"]
[BlackFideId "4171900"]
[WhiteElo "2352"]
[BlackElo "2279"]
[Result "1-0"]
[Round "4"]
[TimeControl "180+2"]
[Date "2023.06.20"]
[WhiteClock "0:00:15"]
[BlackClock "0:00:14"]
[Board "114"]

1. e4 {[%clk 0:03:00]}  e6 {[%clk 0:02:58]} 2. d4 {[%clk 0:03:00]}  d5 {[%clk 0:02:57]} 3. Nc3 {[%clk 0:03:01]}  Nf6 {[%clk 0:02:57]} 4. Bg5 {[%clk 0:03:01]}  Be7 {[%clk 0:02:57]} 5. e5 {[%clk 0:02:58]}  Nfd7 {[%clk 0:02:57]} 6. h4 {[%clk 0:02:58]}  h6 {[%clk 0:02:57]} 7. Bxe7 {[%clk 0:02:57]}  Qxe7 {[%clk 0:02:57]} 8. f4 {[%clk 0:02:58]}  O-O {[%clk 0:02:54]} 9. Nf3 {[%clk 0:02:58]}  c5 {[%clk 0:02:54]} 10. Qd2 {[%clk 0:02:55]}  Nc6 {[%clk 0:02:52]} 11. g4 {[%clk 0:02:52]}  cxd4 {[%clk 0:02:31]} 12. Nxd4 {[%clk 0:02:52]}  f6 {[%clk 0:02:31]} 13. O-O-O {[%clk 0:02:08]}  fxe5 {[%clk 0:02:11]} 14. fxe5 {[%clk 0:02:06]}  Ndxe5 {[%clk 0:02:09]} 15. g5 {[%clk 0:01:56]}  Nxd4 {[%clk 0:02:07]} 16. Qxd4 {[%clk 0:01:56]}  Nf3 {[%clk 0:02:07]} 17. Qe3 {[%clk 0:01:40]}  hxg5 {[%clk 0:01:58]} 18. Nxd5 {[%clk 0:01:39]}  Qf7 {[%clk 0:01:58]} 19. hxg5 {[%clk 0:00:44]}  exd5 {[%clk 0:01:57]} 20. Bd3 {[%clk 0:00:44]}  g6 {[%clk 0:01:33]} 21. Rh6 {[%clk 0:00:43]}  Ne5 {[%clk 0:00:39]} 22. Qxe5 {[%clk 0:00:34]}  Qf4+ {[%clk 0:00:38]} 23. Qxf4 {[%clk 0:00:34]}  Rxf4 {[%clk 0:00:39]} 24. Rxg6+ {[%clk 0:00:27]}  Kf7 {[%clk 0:00:39]} 25. Rh1 {[%clk 0:00:27]}  Ke7 {[%clk 0:00:28]} 26. Rh7+ {[%clk 0:00:24]}  Rf7 {[%clk 0:00:28]} 27. Rgg7 {[%clk 0:00:20]}  Rxg7 {[%clk 0:00:26]} 28. Rxg7+ {[%clk 0:00:21]}  Kd6 {[%clk 0:00:25]} 29. Rg8 {[%clk 0:00:18]}  Ke7 {[%clk 0:00:14]} 30. Bf5 {[%clk 0:00:15]} 1-0


[Site "https://www.chess.com"]

[Event "Titled Tuesday Blitz June 20 Early 2023"]
[White "Urbina Perez, Juan Antonio"]
[Black "Marek, Matyas"]
[WhiteFideId "2217368"]
[BlackFideId "335398"]
[WhiteElo "2197"]
[BlackElo "2302"]
[Result "0-1"]
[Round "4"]
[TimeControl "180+2"]
[Date "2023.06.20"]
[WhiteClock "0:01:19"]
[BlackClock "0:01:15"]
[Board "115"]

1. Nf3 {[%clk 0:03:00]}  Nf6 {[%clk 0:03:00]} 2. d4 {[%clk 0:02:59]}  g6 {[%clk 0:03:00]} 3. Nc3 {[%clk 0:02:58]}  d5 {[%clk 0:03:00]} 4. Bg5 {[%clk 0:02:52]}  Bg7 {[%clk 0:03:00]} 5. Qd2 {[%clk 0:02:52]}  c5 {[%clk 0:02:58]} 6. Bh6 {[%clk 0:02:50]}  O-O {[%clk 0:02:50]} 7. Bxg7 {[%clk 0:02:49]}  Kxg7 {[%clk 0:02:50]} 8. dxc5 {[%clk 0:02:45]}  Nc6 {[%clk 0:02:48]} 9. O-O-O {[%clk 0:02:44]}  Qa5 {[%clk 0:02:44]} 10. Kb1 {[%clk 0:02:40]}  Rd8 {[%clk 0:02:40]} 11. Nd4 {[%clk 0:02:35]}  Qxc5 {[%clk 0:02:32]} 12. Nxc6 {[%clk 0:02:33]}  bxc6 {[%clk 0:02:32]} 13. Qd4 {[%clk 0:02:31]}  Qxd4 {[%clk 0:02:29]} 14. Rxd4 {[%clk 0:02:32]}  e5 {[%clk 0:02:29]} 15. Rd1 {[%clk 0:02:32]}  Ng4 {[%clk 0:02:27]} 16. Re1 {[%clk 0:02:27]}  Nxf2 {[%clk 0:02:27]} 17. Rg1 {[%clk 0:02:27]}  d4 {[%clk 0:02:19]} 18. Nd1 {[%clk 0:02:26]}  Nxd1 {[%clk 0:02:15]} 19. Rxd1 {[%clk 0:02:26]}  Bf5 {[%clk 0:02:15]} 20. h3 {[%clk 0:02:18]}  c5 {[%clk 0:02:10]} 21. g4 {[%clk 0:02:18]}  Be6 {[%clk 0:02:11]} 22. Bg2 {[%clk 0:02:19]}  Rac8 {[%clk 0:02:10]} 23. e3 {[%clk 0:02:12]}  f6 {[%clk 0:02:02]} 24. e4 {[%clk 0:02:10]}  c4 {[%clk 0:02:02]} 25. Rgf1 {[%clk 0:02:08]}  c3 {[%clk 0:02:00]} 26. b3 {[%clk 0:02:03]}  a5 {[%clk 0:02:01]} 27. Rf2 {[%clk 0:02:03]}  Rd6 {[%clk 0:01:54]} 28. a4 {[%clk 0:02:02]}  d3 {[%clk 0:01:48]} 29. Bf1 {[%clk 0:01:55]}  d2 {[%clk 0:01:46]} 30. Rf3 {[%clk 0:01:49]}  Bxb3 {[%clk 0:01:39]} 31. Bb5 {[%clk 0:01:45]}  Be6 {[%clk 0:01:34]} 32. Rg3 {[%clk 0:01:43]}  Rd4 {[%clk 0:01:32]} 33. Re3 {[%clk 0:01:41]}  Rb4+ {[%clk 0:01:32]} 34. Ka1 {[%clk 0:01:41]}  Rb2 {[%clk 0:01:17]} 35. Rf1 {[%clk 0:01:19]}  Rxc2 {[%clk 0:01:15]} 0-1


[Site "https://www.chess.com"]

[Event "Titled Tuesday Blitz June 20 Early 2023"]
[White "Toncheva, Nadya"]
[Black "Haug, Havard"]
[WhiteFideId "2924056"]
[BlackFideId "1547887"]
[WhiteElo "2101"]
[BlackElo "2396"]
[Result "0-1"]
[Round "4"]
[TimeControl "180+2"]
[Date "2023.06.20"]
[WhiteClock "0:00:03"]
[BlackClock "0:00:03"]
[Board "117"]

1. d4 {[%clk 0:03:00]}  d5 {[%clk 0:02:53]} 2. c4 {[%clk 0:03:01]}  e6 {[%clk 0:02:53]} 3. Nc3 {[%clk 0:03:01]}  c5 {[%clk 0:02:53]} 4. cxd5 {[%clk 0:03:01]}  cxd4 {[%clk 0:02:53]} 5. Qa4+ {[%clk 0:03:01]}  Bd7 {[%clk 0:02:53]} 6. Qxd4 {[%clk 0:03:02]}  exd5 {[%clk 0:02:53]} 7. Qxd5 {[%clk 0:03:03]}  Nf6 {[%clk 0:02:53]} 8. Qxb7 {[%clk 0:03:03]}  Nc6 {[%clk 0:02:53]} 9. Qb3 {[%clk 0:03:03]}  Bc5 {[%clk 0:02:46]} 10. e3 {[%clk 0:03:01]}  O-O {[%clk 0:02:39]} 11. Nf3 {[%clk 0:03:01]}  Bf5 {[%clk 0:02:33]} 12. a3 {[%clk 0:02:39]}  Ne4 {[%clk 0:02:24]} 13. Be2 {[%clk 0:02:33]}  Rb8 {[%clk 0:02:16]} 14. Qd1 {[%clk 0:02:30]}  Qa5 {[%clk 0:02:13]} 15. O-O {[%clk 0:02:24]}  Nxc3 {[%clk 0:02:11]} 16. bxc3 {[%clk 0:02:22]}  Qxc3 {[%clk 0:02:12]} 17. Bd2 {[%clk 0:02:22]}  Qf6 {[%clk 0:01:54]} 18. Qc1 {[%clk 0:02:14]}  Bd6 {[%clk 0:01:40]} 19. Qc3 {[%clk 0:02:11]}  Ne5 {[%clk 0:01:38]} 20. Rac1 {[%clk 0:01:56]}  Nxf3+ {[%clk 0:01:19]} 21. Bxf3 {[%clk 0:01:56]}  Qxc3 {[%clk 0:01:19]} 22. Rxc3 {[%clk 0:01:53]}  Rb2 {[%clk 0:01:17]} 23. Bc1 {[%clk 0:01:50]}  Rbb8 {[%clk 0:01:08]} 24. Rd1 {[%clk 0:01:44]}  Be7 {[%clk 0:01:02]} 25. e4 {[%clk 0:01:42]}  Be6 {[%clk 0:01:01]} 26. Bf4 {[%clk 0:01:42]}  Rbc8 {[%clk 0:00:59]} 27. Rdc1 {[%clk 0:01:37]}  Rcd8 {[%clk 0:00:49]} 28. h3 {[%clk 0:01:33]}  Bd6 {[%clk 0:00:44]} 29. e5 {[%clk 0:01:27]}  Bb8 {[%clk 0:00:41]} 30. Bg3 {[%clk 0:01:21]}  Rd2 {[%clk 0:00:40]} 31. R1c2 {[%clk 0:01:20]}  Rd4 {[%clk 0:00:37]} 32. Be2 {[%clk 0:01:08]}  g5 {[%clk 0:00:33]} 33. Bf3 {[%clk 0:00:48]}  Kg7 {[%clk 0:00:29]} 34. Rc1 {[%clk 0:00:44]}  Rfd8 {[%clk 0:00:29]} 35. Kh2 {[%clk 0:00:40]}  Rd2 {[%clk 0:00:24]} 36. R1c2 {[%clk 0:00:39]}  R2d3 {[%clk 0:00:22]} 37. Be2 {[%clk 0:00:37]}  Rd2 {[%clk 0:00:18]} 38. Rxd2 {[%clk 0:00:34]}  Rxd2 {[%clk 0:00:19]} 39. Bf3 {[%clk 0:00:31]}  a6 {[%clk 0:00:13]} 40. Rc6 {[%clk 0:00:28]}  Ba7 {[%clk 0:00:13]} 41. Rxa6 {[%clk 0:00:27]}  Bxf2 {[%clk 0:00:13]} 42. Bxf2 {[%clk 0:00:28]}  Rxf2 {[%clk 0:00:14]} 43. Kg3 {[%clk 0:00:28]}  Rb2 {[%clk 0:00:13]} 44. a4 {[%clk 0:00:28]}  Ra2 {[%clk 0:00:13]} 45. Ra7 {[%clk 0:00:27]}  Ra3 {[%clk 0:00:12]} 46. a5 {[%clk 0:00:27]}  h5 {[%clk 0:00:12]} 47. Kf2 {[%clk 0:00:27]}  g4 {[%clk 0:00:12]} 48. hxg4 {[%clk 0:00:27]}  hxg4 {[%clk 0:00:13]} 49. Be4 {[%clk 0:00:27]}  g3+ {[%clk 0:00:07]} 50. Ke2 {[%clk 0:00:27]}  Bg4+ {[%clk 0:00:06]} 51. Kd2 {[%clk 0:00:27]}  Kf8 {[%clk 0:00:06]} 52. a6 {[%clk 0:00:26]}  Be6 {[%clk 0:00:04]} 53. Ra8+ {[%clk 0:00:26]}  Kg7 {[%clk 0:00:04]} 54. a7 {[%clk 0:00:26]}  Bc4 {[%clk 0:00:03]} 55. Kc2 {[%clk 0:00:23]}  Be6 {[%clk 0:00:03]} 56. Kb2 {[%clk 0:00:23]}  Ra4 {[%clk 0:00:04]} 57. Bc6 {[%clk 0:00:20]}  Ra5 {[%clk 0:00:04]} 58. Kc3 {[%clk 0:00:20]}  Ra1 {[%clk 0:00:04]} 59. Kb4 {[%clk 0:00:19]}  Bf5 {[%clk 0:00:03]} 60. Kc5 {[%clk 0:00:19]}  Rc1+ {[%clk 0:00:03]} 61. Kb6 {[%clk 0:00:19]}  Rxc6+ {[%clk 0:00:03]} 62. Kb7 {[%clk 0:00:13]}  Be4 {[%clk 0:00:03]} 63. Rg8+ {[%clk 0:00:12]}  Kxg8 {[%clk 0:00:03]} 64. a8=Q+ {[%clk 0:00:03]}  Rc8+ {[%clk 0:00:03]} 0-1


[Site "https://www.chess.com"]

[Event "Titled Tuesday Blitz June 20 Early 2023"]
[White "Mattheii"]
[Black "Seemann, Jakub"]
[BlackFideId "21874697"]
[WhiteElo "2472"]
[BlackElo "2364"]
[Result "0-1"]
[Round "4"]
[TimeControl "180+2"]
[Date "2023.06.20"]
[WhiteClock "0:00:03"]
[BlackClock "0:01:04"]
[Board "118"]

1. d4 {[%clk 0:03:00]}  d5 {[%clk 0:02:56]} 2. c4 {[%clk 0:02:58]}  dxc4 {[%clk 0:02:57]} 3. e3 {[%clk 0:02:58]}  Nf6 {[%clk 0:02:55]} 4. Nf3 {[%clk 0:02:57]}  e6 {[%clk 0:02:54]} 5. Bxc4 {[%clk 0:02:57]}  a6 {[%clk 0:02:52]} 6. a4 {[%clk 0:02:50]}  c5 {[%clk 0:02:47]} 7. O-O {[%clk 0:02:50]}  Nc6 {[%clk 0:02:26]} 8. Qe2 {[%clk 0:02:44]}  cxd4 {[%clk 0:02:19]} 9. exd4 {[%clk 0:02:41]}  Nxd4 {[%clk 0:02:17]} 10. Nxd4 {[%clk 0:02:41]}  Qxd4 {[%clk 0:02:18]} 11. Rd1 {[%clk 0:02:41]}  Qc5 {[%clk 0:02:16]} 12. Be3 {[%clk 0:02:02]}  Qc7 {[%clk 0:02:14]} 13. a5 {[%clk 0:01:54]}  Bc5 {[%clk 0:02:12]} 14. Bg5 {[%clk 0:01:47]}  Bd7 {[%clk 0:02:09]} 15. Nc3 {[%clk 0:01:43]}  Bc6 {[%clk 0:02:00]} 16. Rac1 {[%clk 0:01:20]}  O-O {[%clk 0:01:59]} 17. Bxf6 {[%clk 0:01:14]}  gxf6 {[%clk 0:02:00]} 18. Rd3 {[%clk 0:01:14]}  f5 {[%clk 0:01:58]} 19. Rh3 {[%clk 0:01:14]}  Qf4 {[%clk 0:01:52]} 20. Rf1 {[%clk 0:01:04]}  Rad8 {[%clk 0:01:40]} 21. Qh5 {[%clk 0:00:56]}  h6 {[%clk 0:01:38]} 22. Bxe6 {[%clk 0:00:34]}  Kg7 {[%clk 0:01:24]} 23. Bxf5 {[%clk 0:00:20]}  Rd2 {[%clk 0:01:23]} 24. Rg3+ {[%clk 0:00:18]}  Kh8 {[%clk 0:01:13]} 25. Ne2 {[%clk 0:00:08]}  Qxf2+ {[%clk 0:01:04]} 26. Rxf2 {[%clk 0:00:03]}  Rd1# {[%clk 0:01:04]} 0-1


[Site "https://www.chess.com"]